Cogmind - Beta 13 @@@ ROGUE MODE // 2024.04.07 @ 22:08:10 Player: Gargash Result: Destroyed by Y-45 Defender with Beam Rifle Performance ------------- Evolutions (1) 500 Regions Visited (2) 400 Robots Destroyed (37) 185 Value Destroyed (903) 903 Prototype IDs (0) 0 Alien Tech Used (0) 0 Bonus (0) 0 TOTAL SCORE: 1988 Bonus ------- None Cogmind --------- Core Integrity 0/400 Matter 300/300 Energy 100/160 System Corruption 3% Temperature Warning (352) Movement Walking (190) Ox1 Location -9/Materials Parts ------- > --- POWER (1) -------- Light Nuclear Core > --- PROPULSION (2) --- Aluminum Leg > --- UTILITY (3) ------ Improved Heat Sink Medium Storage Unit Advanced Weight Redist. System > --- WEAPON (3) ------- Shock Rifle Field Laser Flail > --- INVENTORY (10) --- Ion Engine Ion Engine Small Laser Small Laser Light EM Pulse Cannon Grenade Launcher Grenade Launcher Datajack Peak State ------------ > --- POWER ------------ Light Ion Engine > --- PROPULSION ------- Aluminum Leg Aluminum Leg > --- UTILITY ---------- Improved Heat Sink Medium Storage Unit Advanced Weight Redist. System > --- WEAPON ----------- Shock Rifle Shock Rifle Shock Rifle > --- INVENTORY -------- Ion Engine Ion Engine Small Laser Field Laser Light EM Pulse Cannon Shotgun Grenade Launcher Grenade Launcher Datajack Flail [Rating: 20] Favorites ----------- Power Light Ion Engine Engine Light Ion Engine Power Core Light Nuclear Core Propulsion Aluminum Leg Leg Aluminum Leg Wheel Wheel Hover Unit Hover Unit Flight Unit Flight Unit Utility Medium Storage Unit Device Improved Terrain Scanner Storage Medium Storage Unit Weapon Assault Rifle Energy Gun Small Laser Energy Cannon Light EM Pulse Cannon Ballistic Gun Assault Rifle Launcher Grenade Launcher Special Weapon Mining Laser Impact Weapon Flail Build | -11 -10 -9 ------- Run | Yrd Mat Mat Slots Evolved 2 | . . 2 Power . | . . . Propulsion . | . . . Utility 1 | . . 1 Weapon 1 | . . 1 Parts Attached 74 | 10 31 33 Power 8 | 1 3 4 Engine 6 | 1 2 3 Core 2 | . 1 1 Reactor . | . . . Propulsion 25 | 5 13 7 Treads . | . . . Leg 6 | . 4 2 Wheel 12 | 5 4 3 Hover 1 | . 1 . Flight 6 | . 4 2 Utility 13 | 1 6 6 Device 11 | 1 5 5 Storage 2 | . 1 1 Processor . | . . . Hackware . | . . . Protection . | . . . Artifact . | . . . Weapon 28 | 3 9 16 Energy Gun 17 | 2 4 11 Energy Cannon 1 | . . 1 Ballistic Gun 5 | 1 1 3 Ballistic Cannon . | . . . Launcher 3 | . 3 . Special Weapon 1 | . 1 . Impact Weapon 1 | . . 1 Slashing Weapon . | . . . Piercing Weapon . | . . . Special Melee Weapon . | . . . Unidentified Prototypes . | . . . Corrupted Parts 1 | . . 1 System Corruption 3 | . . 3 Parts Lost 9 | 1 1 7 Power . | . . . Propulsion 4 | . . 4 Utility 2 | . . 2 Weapon 3 | 1 1 1 Highest Loss Streak 5 | 1 1 5 To Critical Strikes . | . . . Average Slot Usage (%) 94 | . 96 92 Engine 9 | . 10 8 Core 2 | . 3 1 Leg 15 | . 14 15 Wheel 7 | . 10 4 Device 14 | . 14 15 Storage 14 | . 13 14 Energy Gun 15 | . 12 18 Energy Cannon 1 | . . 2 Ballistic Gun 9 | . 12 6 Impact Weapon 1 | . . 2 Naked Turns . | . . . Heaviest Build 30 | 7 20 30 Greatest Support 29 | 20 26 29 Greatest Overweight (x) 6 | . 1 6 Average Overweight (x) . | . . . Largest Inventory Capacity 10 | 5 10 10 Average Capacity 8 | 5 9 10 Most Carried 10 | 5 10 10 Average Carried 7 | 3 7 9 Final Capacity 10 | 5 10 10 Final Carried 10 | 4 10 8 Class Distribution -------------------- 64% | Mutant 13% | Scavenger-Gunner 11% | Scavenger-Mutant 7% | Tank 3% | Gunner Dominant Class ---------------- Mutant | -10/Materials Scavenger-Gunner | -9/Materials Resources | -11 -10 -9 ----------- Run | Yrd Mat Mat Matter Collected 1283 | 295 393 595 Remotely . | . . . Salvage Created 1082 | 94 454 534 Parts 79 | 6 41 32 Haulers Intercepted . | . . . Recyclers Shooed . | . . . Parts Field Recycled . | . . . Retrieved Matter . | . . . Parts Self-Destructed . | . . . Prevented . | . . . Kills | -11 -10 -9 ------- Run | Yrd Mat Mat Combat Hostiles Destroyed 26 | 1 12 13 Guns 22 | 1 9 12 AOE 4 | . 3 1 Classes Destroyed 8 | 3 4 1 Worker 4 | 1 2 1 Builder 1 | . 1 . Tunneler 1 | 1 . . Operator 1 | . 1 . Watcher 4 | . 2 2 Swarmer 6 | . 3 3 Grunt 19 | 1 9 9 Sentry 1 | . . 1 Best Kill Streak 4 | 2 3 4 Combat Bots Only 4 | 1 3 4 Max Kills in Single Turn 3 | 1 3 2 Gunslinging 1 | . . 1 Exploded 2 | . 2 1 Melee . | . . . Uniques/NPCs Destroyed . | . . . Combat | -11 -10 -9 -------- Run | Yrd Mat Mat Hostile Shots Fired 192 | 19 54 119 Missed 57 | 6 17 34 Damage Taken 1795 | 149 497 1149 Core 556 | 32 113 411 Absorbed by Shields 48 | . . 48 Regen/Repaired (Parts) 20 | . . 20 Core Remaining (%) 64 | 87 42 . Volleys Fired 101 | 18 49 34 Largest 3 | 2 2 3 Hottest 189 | 80 70 189 Shots Fired 193 | 22 88 83 Gun 186 | 22 82 82 Cannon 1 | . . 1 Launcher 6 | . 6 . Special . | . . . Kinetic 67 | . 44 23 Thermal 93 | 11 38 44 Explosive 6 | . 6 . Electromagnetic 27 | 11 . 16 Robot Hit Streak 10 | 5 10 7 Robot Miss Streak 4 | 1 4 3 Penetration Max . | . . . Secondary Targets 5 | . 1 4 Max Gunslinging Chain 1 | . 1 1 Shots Hit Robots 118 | 17 48 53 Core Hits 61 | 4 29 28 Critical Kills . | . . . Critical Parts Destroyed . | . . . Critical Strikes 1 | . . 1 Burn 1 | . . 1 Melee Attacks . | . . . Impact . | . . . Slashing . | . . . Piercing . | . . . Sneak Attacks . | . . . Combat Hostiles . | . . . Follow-up Attacks . | . . . Damage Inflicted 1921 | 238 786 897 Guns 1661 | 238 548 875 Cannons . | . . . Explosions 260 | . 238 22 Melee . | . . . Ramming . | . . . Kinetic 594 | . 314 280 Thermal 834 | 123 234 477 Explosive 238 | . 238 . Electromagnetic 255 | 115 . 140 Impact . | . . . Slashing . | . . . Piercing . | . . . Highest Corruption 3 | . . 3 Average Corruption 3 | . . 3 Corruption Purged . | . . . Corruption Blocked . | . . . Effects 3 | . . 3 Message Errors 2 | . . 2 Heat Flow Errors 1 | . . 1 Overload Shots . | . . . Overflow Damage 21 | . 21 . Projectiles . | . . . Explosions 21 | . 21 . Melee . | . . . Knockbacks . | . . . Impact . | . . . Kinetic . | . . . Secondary . | . . . Self-Inflicted Damage 52 | . 20 32 Shots 2 | . 1 1 Rammed . | . . . Targets Rammed . | . . . Kicked . | . . . Crushed . | . . . Highest Temperature 525 | 90 191 525 Average Temperature 85 | 52 64 104 Received Heat Transfer 670 | 78 279 313 Effects 2 | . . 2 Shutdowns 1 | . . 1 Damage (core) 1 | . . 1 Siege Activations . | . . . Robots Corrupted . | . . . Combat Hostiles . | . . . Parts Fried . | . . . Impact Corruptions . | . . . Robots Melted . | . . . Combat Hostiles . | . . . Parts Melted 3 | 1 . 2 Heat Transferred 1886 | 275 525 1086 Parts Sabotaged . | . . . Parts Stolen . | . . . Parts Stripped . | . . . Power Chain Reactions 1 | . . 1 Alert | -11 -10 -9 ------- Run | Yrd Mat Mat Peak Influence 307 | 25 168 307 Initial 62 | . . 62 Average 82 | 11 90 124 Maximum Alert Level 1 | . . 1 Low Security (%) 95 | 100 100 88 Level 1 4 | . . 11 Level 2 . | . . . Level 3 . | . . . Level 4 . | . . . Level 5 . | . . . High Security . | . . . Max Security . | . . . Squads Dispatched 6 | . 3 3 Investigation 2 | . 1 1 Extermination . | . . . Reinforcement 4 | . 2 2 Assault . | . . . Garrison . | . . . Intercept . | . . . Searches Triggered . | . . . Construction Impeded . | . . . Haulers Reinforced . | . . . Active Scanning Responses . | . . . Cargo Convoy Interrupts . | . . . Stealth | -11 -10 -9 --------- Run | Yrd Mat Mat Distress Signals 1 | . . 1 Communications Jammed . | . . . Distress Signals . | . . . Times Spotted 41 | 1 18 22 Peak Tracking Total 6 | 1 3 6 Tactical Retreats 2 | . 1 1 Traps | -11 -10 -9 ------- Run | Yrd Mat Mat Traps Triggered . | . . . Indirectly . | . . . Trap Hack Attempts . | . . . Triggered . | . . . Disarmed . | . . . Reprogrammed . | . . . Reused . | . . . Traps Extracted . | . . . Installed . | . . . Triggered . | . . . Machines | -11 -10 -9 ---------- Run | Yrd Mat Mat Machines Disabled 3 | . 2 1 Max in Single Turn 2 | . 2 1 Machines Repaired . | . . . Machines Dismantled . | . . . Machines Sabotaged . | . . . Overloaded Fab Kills . | . . . Hacking | -11 -10 -9 --------- Run | Yrd Mat Mat Machines Accessed 7 | . 4 3 Terminals 5 | . 3 2 Fabricators . | . . . Repair Stations 1 | . . 1 Recycling Units 1 | . 1 . Scanalyzers . | . . . Garrison Access . | . . . Total Hacks 20 | . 15 5 Successful 14 | . 11 3 Failed 6 | . 4 2 Catastrophic . | . . . Database Lockouts . | . . . Manual . | . . . Terminals 14 | . 12 2 Fabricators . | . . . Repair Stations 3 | . . 3 Recycling Units 3 | . 3 . Scanalyzers . | . . . Garrison Access . | . . . Terminal Hacks 9 | . 8 1 Record 7 | . 6 1 Alert Level 2 | . 2 . Fabricator Hacks . | . . . Repair Station Hacks 2 | . . 2 Scan Component 1 | . . 1 Repair 1 | . . 1 Recycling Unit Hacks 3 | . 3 . Recycle Component 1 | . 1 . Process 1 | . 1 . Report Inventory 1 | . 1 . Scanalyzer . | . . . Garrison Access Hacks . | . . . Unauthorized Hacks . | . . . Terminals . | . . . Fabricators . | . . . Repair Stations . | . . . Recycling Units . | . . . Scanalyzers . | . . . Garrison Access . | . . . Data Cores Recovered 1 | . 1 . Used . | . . . Hacking Detections 4 | . 3 1 Full Trace Events 2 | . 1 1 Feedback Events . | . . . Feedback Blocked . | . . . Robot Schematics Acquired . | . . . Robots Built . | . . . Authchips . | . . . Time . | . . . Total Robot Build Rating . | . . . Part Schematics Acquired . | . . . Parts Built . | . . . Authchips . | . . . Time . | . . . Total Part Build Rating . | . . . Parts Repaired 1 | . . 1 Time 26 | . . 26 Parts Recycled 1 | . 1 . Recycled Matter 143 | . 143 . Retrieved Matter . | . . . Retrieved Components . | . . . Parts Scanalyzed . | . . . Part Schematics Acquired . | . . . Parts Damaged . | . . . Bothacking | -11 -10 -9 ------------ Run | Yrd Mat Mat Used RIF Installer . | . . . Robots Hacked . | . . . Non-combat . | . . . Combat . | . . . Robot Hacks Applied . | . . . Relay Couplers Released . | . . . Fabnet Peak Effective % . | . . . Robots Rewired . | . . . Allies Hacked . | . . . Hacks Repelled . | . . . Allies | -11 -10 -9 -------- Run | Yrd Mat Mat Total Allies . | . . . Largest Group . | . . . Highest-Rated Group . | . . . Highest-Rated Ally . | . . . Total Orders . | . . . Ally Attacks . | . . . Total Damage . | . . . Kills . | . . . Allies Corrupted . | . . . Allies Melted . | . . . Intel | -11 -10 -9 ------- Run | Yrd Mat Mat Robot Analysis Total . | . . . Derelict Logs Recovered . | . . . Drone Launches . | . . . Drone Recoveries . | . . . Exploration | -11 -10 -9 ------------- Run | Yrd Mat Mat Turns Passed 2467 | 636 931 900 Spaces Moved 1256 | 181 659 416 Core 27 | 21 . 6 Treads . | . . . Legs 625 | . 322 303 Wheels 594 | 160 337 97 Hover . | . . . Flight 10 | . . 10 Fastest Speed 50 | 50 80 95 Average Speed 115 | 76 105 148 Slowest Speed 360 | 80 120 360 Overloaded Moves . | . . . Propulsion Burnouts . | . . . Robots Hopped . | . . . Cave-ins Triggered . | . . . Exploration Rate (%) 38 | 13 77 24 Regions Visited 2 Branch Regions . Pre-discovered Areas . | . . . Known Exits Taken . | . . . Unknown Exits Taken 2 | 1 1 . Scrap Searched . | . . . Spaces Dug . | . . . Terrain Destroyed 30 | . 27 3 Melee . | . . . Projectile . | . . . AOE 30 | . 27 3 Terrain Rammed . | . . . Walls Destroyed . | . . . Machines Disabled . | . . . Actions | -11 -10 -9 --------- Run | Yrd Mat Mat Total 2120 | 657 825 638 Wait 556 | 431 20 105 Move 1254 | 180 658 416 Hop . | . . . Pick Up 65 | 14 29 22 Fast Attach 6 | . . 6 Attach 65 | 9 31 25 Detach 25 | 1 18 6 Swap 3 | 1 . 2 Drop 45 | 3 20 22 Fire 101 | 18 49 34 Melee . | . . . Ram . | . . . Kick . | . . . Crush . | . . . Escape Stasis . | . . . Rewire . | . . . Trap . | . . . Miscellaneous . | . . . Route ------- -11/Scrapyard -10/Materials (discovered 4 exits: *Mat x3 / [*Min]) -9/Materials History --------- Turn | Location | Event 2 | -11/Scrapyard | Met Revision 17 78 | -11/Scrapyard | Discovered new exit (range 8) 637 | -11/Scrapyard | Entered Materials 638 | -10/Materials | Build established: Mutant 845 | -10/Materials | Discovered new exit (range 12) 1152 | -10/Materials | Discovered new exit (range 13) 1328 | -10/Materials | Discovered new exit (range 16) 1384 | -10/Materials | Discovered new exit (range 10) 1451 | -10/Materials | Core integrity fell below 50% 1568 | -10/Materials | Entered another Materials area 1568 | -9/Materials | Evolved 2 slots: Utility x1, Weapon x1 1748 | -9/Materials | Repaired Ion Engine? 1806 | -9/Materials | Lost 5 parts (2n2u1w) 2156 | -9/Materials | Build established: Scavenger-Gunner 2461 | -9/Materials | Core integrity fell below 50% 2462 | -9/Materials | Core integrity fell below 20% 2468 | -9/Materials | Destroyed by Y-45 Defender with Beam Rifle Last Messages --------------- Connecting with Terminal... >>Query(Authchip) Early [Fabricator] systems were more openly accessible, but rampant abuse by [Derelict] intruders made it necessary to introduce an authorization system to limit unauthorized use of resources. An authchip is now required to load schematics and initiate build orders, and the chips have been divided by schematic category to further limit the potential for abuse. Connecting with Terminal... System corrupted: Heat flow error (+133). Nuclear Reactor explodes. Aluminum Leg destroyed. Nuclear Reactor explodes. The unstable cave ceiling collapses. U-05 Engineer builds a Wall. The unstable cave ceiling collapses. [Achievement: First Step to Greatness] Map ----- +----------------------------------------------------+ | ?????????????????????????????????????????????????? | | ?????????????????????????????????????????????????? | | ?????????????????????????????????????????????????? | | ?????????????????????????????????????????????????? | | ?????????????????????????????????????????????????? | | ?????????????????????????????????????????????????? | | ?????????????????????????????????????????????????? | | ?????????????????????????????????????????????????? | | ?????????????????????????????????????????????????? | | ?????????????????????????????????????????????????? | | ?????????????????????????????????????????????????? | | ?????????????????????????????????????????????????? | | ??????????????????+####??????????????????????????? | | ????????????????? ??????????????????????????? | | ????????????????? ??????????????????????????? | | ?????????????????? ???##?????????????????????? | | ??????????????????? ?? #?????????????????????? | | ??????????????????? ?? #?????????????????????? | | ???????????????????? ## ##????????????????????? | | ????????????????????? # ####?????????????????? | | #######??????????????# #?????????????????? | | #?????????????### #?????????????????? | | """"" #?###########?# #?????????????????? | | """"" #?# """ """ #?# #?????????????????? | | """"" #?# """ """ #?# #?????????????????? | | #?# """ """ #?# @ Y #?????????????????? | | """"" #?# #?# u ???????????? | | """"" #?# #?# #?????????? | | """"" #?# #?# # #?????????? | | #?# #?# # # k #?????????? | | ##+####?# #?# """ #? ??????????? | | ########+######### """ ##?? #?????????? | | """"" + # """ #????? #?????????? | | ""T"" # # #?????? ??????????? | | #^ ####+###????? ???????????? | | + ## ######+##???????????? | | # ## " T #???????????? | | # ## "T +???????????? | | ######### #???????????? | | """ #??????# """ #???????????? | | """ #??????###### """ #???????????? | | % """ [[#???????????# """ #???????????? | | ############# #???????????? | | "" % % +???????????? | | "" %############################## #???????????? | | "" #????????????????????????????# #???????????? | | " #????????????????????????????? #??????????? | | #?????????????????????????????? #??????????? | | #?????????????????????????????? #??????????? | | " #??????????????????????????????? #??????????? | +----------------------------------------------------+ Best States ------------- Heat Dissipation 42 Energy Generation 14 Energy Capacity 250 Matter Stores 400 Matter Capacity 400 Sight Range 16 Terrain Scan Range 16 Terrain Scan Density 10 ECM Strength 1 Additional Mass Support 9 Evasion (%) 55 Item Schematics ----------------- None Robot Schematics ------------------ None Fabricated ------------ Nothing Alien Tech Used ----------------- None Achievements -------------- Crack Shot Dramatic Entrance First Step to Greatness One Hack Too Far Part-time Mechanic Uninvited Guest Challenges ------------ None Game ------ Seed HelicalGuidanceDriver Manual? 0 Play Time 01:28:58 Cumulative 1.4 hours Start 2024.04.07 @ 20:30:04 End 2024.04.07 @ 22:08:10 Sessions 1 Manual Loads 0 Difficulty Rogue Special Mode None Game No. 1 Rogue 1 Adventurer 0 Explorer 0 Win Type - Total 0 Types 0/0/0/0/0/0/0/0/0 Lore% 0 Gallery% 2 Achievement% 2 Wizard Run 0 Options --------- Layout 1 ASCII 0 Keyboard 0 Movement Mouse Keybinds 0 Fullscreen 1 Font 24/Smallcaps Map View 50x35 Zoom Use 6% Tactical HUD 0 Map Filters NONE Filters NONE Steam 1 RUN: 67bd0aa4-552c-43e7-9c38-a0996a7b7a57